bitfinex/quotes_BTCUSD_20241222
["timestamp","ask_amount","ask_price","bid_price","bid_amount"]
[1734859232047,0.00013998,96526.0,96522.0,0.414408]
[1734859232247,0.00013998,96526.0,96524.0,0.207202]
[1734859232664,0.00013998,96526.0,96525.0,0.0088378]
[1734859233064,0.00013998,96526.0,96524.0,0.207202]
[1734859233280,0.00013998,96526.0,96525.0,0.00883741]
[1734859233969,0.00013998,96526.0,96524.0,0.207202]
[1734859234180,0.00013998,96526.0,96525.0,0.00883741]
[1734859234423,0.00013998,96526.0,96524.0,0.207202]
[1734859234667,0.00013998,96526.0,96525.0,0.00883741]
[1734859234908,0.00013998,96526.0,96524.0,0.3085104]
[1734859235371,0.00013998,96526.0,96525.0,0.00883741]
[1734859235622,0.00013998,96526.0,96524.0,0.3085104]
[1734859235854,0.00013998,96526.0,96525.0,0.00983162]
[1734859236380,0.00013998,96526.0,96525.0,0.00883162]
[1734859236617,0.00013998,96526.0,96525.0,0.001]
[1734859236857,0.00013998,96526.0,96525.0,0.00983162]
[1734859237066,0.00013998,96526.0,96525.0,0.001]
[1734859237266,5.8e-07,96529.0,96525.0,0.38867591]
[1734859237475,0.0001712,96540.0,96539.0,0.20717]
[1734859237685,0.0001714,96542.0,96540.0,0.1]
[1734859237887,0.0001714,96542.0,96541.0,0.6148312]
[1734859238094,0.0001714,96542.0,96541.0,0.69039552]
[1734859238297,4e-07,96542.0,96541.0,0.66689393]
[1734859239148,4e-07,96549.0,96541.0,0.66689393]
[1734859239348,4e-07,96549.0,96548.0,0.3229]
[1734859239551,4e-07,96549.0,96548.0,0.43298863]
[1734859240839,4e-07,96549.0,96548.0,0.64013863]
[1734859241215,4e-07,96549.0,96548.0,1.18314288]
[1734859241436,4e-07,96549.0,96548.0,1.26474288]
[1734859242000,4e-07,96549.0,96548.0,1.25974288]
[1734859242345,4e-07,96549.0,96548.0,1.26374288]
[1734859242772,4e-07,96549.0,96548.0,1.27274288]
[1734859243841,4e-07,96549.0,96548.0,1.26874288]
[1734859244047,4e-07,96549.0,96548.0,1.14724288]
[1734859245233,4e-07,96549.0,96548.0,1.13324288]
[1734859245371,4e-07,96549.0,96548.0,1.14224288]
[1734859245794,4e-07,96549.0,96548.0,1.13324288]
[1734859245999,4e-07,96549.0,96548.0,1.14124288]
[1734859246365,4e-07,96549.0,96548.0,1.13324288]
[1734859246549,4e-07,96549.0,96548.0,1.03324288]
[1734859246739,4e-07,96549.0,96548.0,1.04224288]
[1734859246964,4e-07,96549.0,96548.0,0.60323863]
[1734859247166,4e-07,96549.0,96548.0,0.50323863]
[1734859248201,4e-07,96549.0,96548.0,0.60323863]
[1734859251273,4e-07,96549.0,96548.0,0.60340983]
[1734859252150,8.6e-05,96549.0,96548.0,0.60340983]
[1734859258779,0.0001,96569.0,96568.0,0.207107]
[1734859259000,0.00064425,96569.0,96568.0,0.207107]
[1734859259388,0.00064425,96569.0,96568.0,0.21566086]
[1734859260003,0.00064425,96569.0,96568.0,0.21766086]
[1734859261138,0.00064425,96569.0,96568.0,0.36766086]
[1734859261974,0.00064425,96569.0,96568.0,0.36566086]
[1734859262179,0.00064425,96569.0,96568.0,0.37366086]
[1734859262775,0.00064425,96569.0,96568.0,0.38394652]
[1734859264213,0.00072985,96569.0,96568.0,0.38394652]
[1734859264785,0.00072985,96569.0,96568.0,0.48525492]
[1734859266270,0.00072985,96569.0,96568.0,0.48225492]
[1734859266420,0.00072985,96569.0,96568.0,0.47725492]
[1734859266745,0.00072985,96569.0,96568.0,0.48525492]
[1734859267588,0.00072985,96569.0,96568.0,0.50825492]
[1734859267964,0.00072985,96569.0,96568.0,0.50525492]
[1734859268361,0.00072985,96569.0,96568.0,0.50825492]
[1734859268569,0.00072985,96569.0,96568.0,0.50325492]
[1734859268954,0.020113,96569.0,96568.0,0.50825492]
[1734859269156,0.020113,96569.0,96568.0,0.50325492]
[1734859269730,0.020113,96569.0,96568.0,0.50525492]
[1734859269942,0.00072985,96569.0,96568.0,0.50325492]
[1734859270147,0.00072985,96569.0,96568.0,0.51125492]
[1734859270548,0.00072985,96569.0,96568.0,0.50325492]
[1734859270888,0.00072985,96569.0,96568.0,0.53553254]
[1734859271089,0.00072985,96569.0,96568.0,0.50325492]
[1734859271296,0.00072985,96569.0,96568.0,0.53255304]
[1734859271495,0.00072985,96569.0,96568.0,0.53655304]
[1734859271818,0.00072985,96569.0,96568.0,0.54455304]
[1734859272001,0.00072985,96569.0,96568.0,0.53655304]
[1734859272204,0.00072985,96569.0,96568.0,0.53255304]
[1734859272400,0.00072985,96569.0,96568.0,0.54455304]
[1734859272623,0.00072985,96569.0,96568.0,0.53655304]
[1734859273079,0.00072985,96569.0,96568.0,0.54055304]
[1734859273360,0.00072985,96569.0,96568.0,0.53755304]
[1734859273520,0.00072985,96569.0,96568.0,0.54655304]
[1734859274761,0.00072985,96569.0,96568.0,0.64655304]
[1734859275165,0.00072985,96569.0,96568.0,0.72065304]
[1734859275566,0.00072985,96569.0,96568.0,0.72565304]
[1734859278584,0.00072985,96569.0,96568.0,0.64655304]
[1734859282982,0.00072985,96569.0,96568.0,1.16432304]
[1734859285817,0.00072985,96569.0,96568.0,1.04132304]
[1734859286023,0.00072985,96569.0,96568.0,1.00902492]
[1734859295786,0.00072985,96569.0,96568.0,1.04135979]
[1734859296363,0.00072985,96569.0,96568.0,1.00902492]
[1734859298630,0.00072985,96569.0,96568.0,1.04136692]
[1734859298846,0.00072985,96569.0,96568.0,1.00902492]
[1734859299414,0.00072985,96569.0,96568.0,1.04137009]
[1734859302584,0.00072985,96569.0,96568.0,1.16437009]
[1734859303948,0.00072985,96569.0,96568.0,1.70737434]
[1734859305522,0.00031822,96569.0,96568.0,1.70737434]
[1734859307618,2.2e-07,96569.0,96568.0,1.70737434]
[1734859309159,2.2e-07,96569.0,96568.0,1.70237434]
[1734859309585,2.2e-07,96569.0,96568.0,1.70737434]
[1734859310100,2.2e-07,96569.0,96568.0,1.69837434]
[1734859310259,2.2e-07,96569.0,96568.0,1.70737434]
[1734859310900,2.2e-07,96569.0,96568.0,1.70237434]
[1734859311043,2.2e-07,96569.0,96568.0,1.70254554]
[1734859311252,2.2e-07,96569.0,96568.0,1.70854554]
[1734859315564,2.2e-07,96569.0,96568.0,1.9879304]
[1734859317786,2.2e-07,96569.0,96568.0,1.70854554]
[1734859320923,2.2e-07,96569.0,96568.0,1.60854554]
[1734859321124,2.2e-07,96569.0,96568.0,1.70854554]
[1734859321986,2.2e-07,96569.0,96568.0,1.16554129]
[1734859322527,2.2e-07,96569.0,96568.0,1.35176908]
[1734859323401,2.2e-07,96569.0,96568.0,1.16554129]
[1734859324317,2.2e-07,96569.0,96568.0,1.35176908]
[1734859325383,2.2e-07,96569.0,96568.0,1.16554129]
[1734859327944,2.2e-07,96569.0,96568.0,1.70854554]
[1734859329034,2.2e-07,96569.0,96568.0,1.94133028]
[1734859330349,2.2e-07,96569.0,96568.0,1.81833028]
[1734859330551,2.2e-07,96569.0,96568.0,1.78598511]
[1734859330776,2.2e-07,96569.0,96568.0,1.63598511]
[1734859330955,0.12420022,96569.0,96568.0,1.09298086]
[1734859331158,0.14359134,96569.0,96568.0,0.75888772]
[1734859331875,0.14359134,96569.0,96568.0,0.75288772]
[1734859332302,0.14359134,96569.0,96568.0,0.75788772]
[1734859332708,0.14359134,96569.0,96568.0,0.75288772]
[1734859333082,0.14359134,96569.0,96568.0,0.75688772]
[1734859333346,0.14359134,96569.0,96568.0,0.74788772]
[1734859333710,0.14359134,96569.0,96568.0,0.75588772]
[1734859333886,0.14359134,96569.0,96568.0,0.74788772]
[1734859334313,0.14359134,96569.0,96568.0,0.75488772]
[1734859334915,0.14359134,96569.0,96568.0,0.75088772]
[1734859335277,0.14359134,96569.0,96568.0,0.75488772]
[1734859342998,0.14359134,96569.0,96568.0,0.75088772]
[1734859343201,0.14359134,96569.0,96568.0,0.74588772]
[1734859343469,0.14359134,96569.0,96568.0,0.75088772]
[1734859343637,0.01939134,96569.0,96568.0,0.74588772]
[1734859343990,0.01939134,96569.0,96568.0,0.75088772]
[1734859344394,0.01939134,96569.0,96568.0,0.74888772]
[1734859344599,0.01939134,96569.0,96568.0,0.85019612]
[1734859344920,0.01939134,96569.0,96568.0,1.00219612]
[1734859345303,2.2e-07,96569.0,96568.0,1.00019612]
[1734859345505,2.2e-07,96569.0,96568.0,1.00219612]
[1734859346086,2.2e-07,96569.0,96568.0,1.01819612]
[1734859346291,2.2e-07,96569.0,96568.0,1.02119612]
[1734859346605,2.2e-07,96569.0,96568.0,1.02619612]
[1734859346806,2.2e-07,96569.0,96568.0,1.02119612]
[1734859347015,9.2e-07,96576.0,96573.0,0.1]
[1734859347242,0.00016406,96576.0,96575.0,0.173]
[1734859347417,0.00016406,96576.0,96575.0,0.48243566]
[1734859347619,0.00016406,96576.0,96575.0,0.4814004]
[1734859347823,0.00016406,96576.0,96575.0,0.4898559]
[1734859348726,0.00016406,96576.0,96575.0,1.0075859]
[1734859349789,0.00016406,96576.0,96575.0,1.0125859]
[1734859350000,0.00016406,96576.0,96575.0,1.0215859]
[1734859350924,0.00016406,96576.0,96575.0,1.0125859]
[1734859351160,0.00016406,96576.0,96575.0,1.0165859]
[1734859351548,0.00016406,96576.0,96575.0,1.0215859]
[1734859352704,0.00016406,96576.0,96575.0,1.0165859]
[1734859352880,0.00016406,96576.0,96575.0,1.0085859]
[1734859353291,0.00016406,96576.0,96575.0,1.0105859]
[1734859354475,0.00016406,96576.0,96575.0,1.0075859]
[1734859354792,0.00016406,96576.0,96575.0,1.0095859]
[1734859355349,0.00016406,96576.0,96575.0,1.0105859]
[1734859355926,0.00016406,96576.0,96575.0,1.0095859]
[1734859356235,0.00016406,96576.0,96575.0,1.0125859]
[1734859356502,0.00016406,96576.0,96575.0,1.0215859]
[1734859357086,0.00016406,96576.0,96575.0,1.0217573]
[1734859357242,0.00016406,96576.0,96575.0,1.0127573]
[1734859357513,0.00016406,96576.0,96575.0,1.0167573]
[1734859357997,0.00016406,96576.0,96575.0,1.0127573]
[1734859358171,0.00016406,96576.0,96575.0,1.0167573]
[1734859358694,0.00016406,96576.0,96575.0,1.0217573]
[1734859361489,6e-08,96576.0,96575.0,1.0217573]
[1734859362378,6e-08,96576.0,96575.0,1.1217573]
[1734859363529,6e-08,96576.0,96575.0,1.23613918]
[1734859363989,6e-08,96576.0,96575.0,1.2038573]
[1734859364217,6e-08,96576.0,96575.0,1.74686155]
[1734859364606,6e-08,96576.0,96575.0,1.66476155]
[1734859365127,6e-08,96576.0,96575.0,1.65976155]
[1734859365337,6e-08,96576.0,96575.0,1.66076155]
[1734859365979,6e-08,96576.0,96575.0,1.65176155]
[1734859366312,6e-08,96576.0,96575.0,1.65476155]
[1734859366522,6e-08,96576.0,96575.0,1.68403859]
[1734859366746,6e-08,96576.0,96575.0,1.68303859]
[1734859366923,6e-08,96576.0,96575.0,1.78503406]
[1734859367139,6e-08,96576.0,96575.0,1.79003406]
[1734859367550,6e-08,96576.0,96575.0,1.78503406]
[1734859368065,6e-08,96576.0,96575.0,1.88327647]
[1734859369140,7.6e-07,96576.0,96575.0,1.88327647]
[1734859370713,7.6e-07,96576.0,96575.0,1.86927647]
[1734859371057,7.6e-07,96576.0,96575.0,1.87527647]
[1734859371803,7.6e-07,96576.0,96575.0,1.87327647]
[1734859372165,7.6e-07,96576.0,96575.0,1.68703859]
[1734859372595,7.6e-07,96576.0,96575.0,1.68303859]
[1734859372795,7.6e-07,96576.0,96575.0,1.69203859]
[1734859373108,7.6e-07,96576.0,96575.0,1.68803859]
[1734859373313,7.6e-07,96576.0,96575.0,1.69703859]
[1734859373570,7.6e-07,96576.0,96575.0,1.79703859]
[1734859373771,7.6e-07,96576.0,96575.0,1.79203859]
[1734859373988,7.6e-07,96576.0,96575.0,1.79803859]
[1734859375542,0.0001,96589.0,96580.0,0.1]
[1734859375670,0.03098829,96617.0,96580.0,0.1]
[1734859375671,0.0796,96602.0,96595.0,0.15]
[1734859375876,0.0796,96602.0,96598.0,0.207041]
[1734859376083,0.0796,96602.0,96599.0,0.25961734]
[1734859376329,0.0194009,96601.0,96599.0,0.25961734]
[1734859376514,0.0194009,96601.0,96600.0,0.357039]
[1734859376765,0.00014005,96605.0,96600.0,0.357039]
[1734859376766,0.00014005,96605.0,96601.0,0.15]
[1734859376964,0.00014005,96605.0,96604.0,0.15]
[1734859377397,0.01953808,96605.0,96604.0,0.15]
[1734859377558,0.01953808,96605.0,96604.0,0.15829973]
[1734859378370,0.01953808,96605.0,96604.0,0.16029973]
[1734859379348,0.01953808,96605.0,96604.0,0.26160813]
[1734859379572,0.01953808,96605.0,96604.0,0.26460813]
[1734859379808,0.00014005,96605.0,96604.0,0.27509342]
[1734859380010,0.00014005,96605.0,96604.0,0.27009342]
[1734859380210,0.00014005,96605.0,96604.0,0.27509342]
[1734859380614,0.00014005,96605.0,96604.0,0.27209342]
[1734859380815,0.00014005,96605.0,96604.0,0.27509342]
[1734859381043,0.00014005,96605.0,96604.0,0.27809342]
[1734859381732,0.00014005,96605.0,96604.0,0.27509342]
[1734859381928,0.00014005,96605.0,96604.0,0.27809342]
[1734859382341,0.00014005,96605.0,96604.0,0.27309342]
[1734859382717,0.00014005,96605.0,96604.0,0.27909342]
[1734859390620,0.00014005,96605.0,96604.0,0.27609342]
[1734859390999,0.00014005,96605.0,96604.0,0.79667342]
[1734859391411,0.00014005,96605.0,96604.0,0.79367342]
[1734859391822,0.00014005,96605.0,96604.0,0.79667342]
[1734859392289,0.00014005,96605.0,96604.0,0.79067342]
[1734859392618,0.00014005,96605.0,96604.0,0.79667342]
[1734859392825,0.00014005,96605.0,96604.0,0.79067342]
[1734859393377,0.00014005,96605.0,96604.0,0.79467342]
[1734859393593,0.00014005,96605.0,96604.0,0.79067342]
[1734859393822,0.00014005,96605.0,96604.0,0.79767342]
[1734859394012,0.00014005,96605.0,96604.0,0.78767342]
[1734859394349,0.00014005,96605.0,96604.0,0.79067342]
[1734859394778,0.00014005,96605.0,96604.0,0.78767342]
[1734859395104,0.00014005,96605.0,96604.0,0.79067342]
[1734859395958,0.00014005,96605.0,96604.0,0.79767342]
[1734859396155,0.00014005,96605.0,96604.0,0.79067342]
[1734859396363,0.00014005,96605.0,96604.0,0.78767342]
[1734859396572,0.00014005,96605.0,96604.0,0.79467342]
[1734859396783,0.00014005,96605.0,96604.0,0.79767342]
[1734859397231,0.00014005,96605.0,96604.0,0.79467342]
[1734859397461,0.00014005,96605.0,96604.0,0.78767342]
[1734859397645,0.00014005,96605.0,96604.0,0.79067342]
[1734859397828,0.00014005,96605.0,96604.0,0.79767342]
[1734859398026,0.00014005,96605.0,96604.0,0.79467342]
[1734859398450,0.00014005,96605.0,96604.0,0.79767342]
[1734859399092,0.00014005,96605.0,96604.0,0.79067342]
[1734859399523,0.00014005,96605.0,96604.0,0.79767342]
[1734859399698,0.00014005,96605.0,96604.0,0.78767342]
[1734859400115,0.00014005,96605.0,96604.0,0.79767342]
[1734859400469,0.00014005,96605.0,96604.0,0.78767342]
[1734859400924,0.00014005,96605.0,96604.0,0.79767342]
[1734859403216,0.00014005,96605.0,96604.0,0.79467342]
[1734859403450,0.00014005,96605.0,96604.0,0.79767342]
[1734859403651,0.00014005,96605.0,96604.0,0.79067342]
[1734859403849,0.00014005,96605.0,96604.0,0.79767342]
[1734859404411,5e-08,96605.0,96604.0,0.81767342]
[1734859404616,5e-08,96605.0,96604.0,0.94999436]
[1734859404933,8.575e-05,96605.0,96604.0,0.95299436]
[1734859405281,8.575e-05,96605.0,96604.0,0.94599436]
[1734859406088,7.5e-07,96605.0,96604.0,1.48599861]
[1734859406315,7.5e-07,96605.0,96604.0,1.48999861]
[1734859406724,7.5e-07,96605.0,96604.0,1.49699861]
[1734859406926,7.5e-07,96605.0,96604.0,1.49299861]
[1734859407203,7.5e-07,96605.0,96604.0,1.49099861]
[1734859407520,7.5e-07,96605.0,96604.0,1.49999861]
[1734859407738,7.5e-07,96605.0,96604.0,1.49499861]
[1734859407970,7.5e-07,96609.0,96608.0,0.1]
[1734859408122,7.5e-07,96609.0,96608.0,0.40766422]
[1734859408370,7.5e-07,96609.0,96608.0,0.92418934]
[1734859408730,7.5e-07,96609.0,96608.0,0.9324071]
[1734859409725,7.5e-07,96609.0,96608.0,0.9364071]
[1734859410133,7.5e-07,96609.0,96608.0,0.9444071]
[1734859412047,7.5e-07,96609.0,96608.0,1.48741135]
[1734859416067,8.645e-05,96609.0,96608.0,1.48741135]
[1734859416622,8.645e-05,96609.0,96608.0,1.67317858]
[1734859417903,8.645e-05,96609.0,96608.0,1.62686333]
[1734859420099,8.645e-05,96609.0,96608.0,1.48741135]
[1734859420482,8.645e-05,96609.0,96608.0,1.38741135]
[1734859420715,8.645e-05,96609.0,96608.0,1.33209041]
[1734859421087,8.645e-05,96609.0,96608.0,0.78908616]
[1734859421517,0.01948114,96609.0,96608.0,0.78908616]
[1734859428020,0.01948114,96609.0,96608.0,0.78925736]
[1734859443692,8.645e-05,96609.0,96608.0,0.78925736]
[1734859445628,0.01948853,96609.0,96608.0,0.78925736]
[1734859445922,0.01948853,96609.0,96608.0,0.84455294]
[1734859446557,8.645e-05,96609.0,96608.0,0.84455294]
[1734859446987,8.645e-05,96609.0,96608.0,1.02232017]
[1734859447196,8.645e-05,96609.0,96608.0,1.01832017]
[1734859447394,4.5e-07,96609.0,96608.0,1.12332017]
[1734859447597,4.5e-07,96609.0,96608.0,1.20412017]
[1734859447809,4.5e-07,96609.0,96608.0,1.21312017]
[1734859448023,4.5e-07,96609.0,96608.0,1.19912017]
[1734859448227,4.5e-07,96609.0,96608.0,1.74712442]
[1734859448423,0.0001,96629.0,96615.0,0.621021]
[1734859448632,0.0001,96629.0,96617.0,0.173]
[1734859448873,0.0001,96629.0,96622.0,0.379992]
[1734859449027,0.0001,96629.0,96622.0,1.03107598]
[1734859449232,0.0001,96629.0,96622.0,1.03921603]
[1734859449531,0.0001,96629.0,96622.0,1.03918267]
[1734859449941,0.0001,96629.0,96622.0,1.00692045]
[1734859450173,0.0001,96629.0,96622.0,1.03918274]
[1734859450980,0.0001,96629.0,96622.0,1.04617053]
[1734859451179,0.0001,96629.0,96622.0,1.03917053]
[1734859451326,0.0001,96629.0,96622.0,1.01492045]
[1734859451527,0.0001,96629.0,96622.0,1.14628716]
[1734859451735,0.0001,96629.0,96622.0,1.15028716]
[1734859451917,0.0001,96629.0,96622.0,1.15828716]
[1734859452320,0.0001,96629.0,96622.0,1.15428716]
[1734859452517,0.0001,96629.0,96622.0,1.16473398]
[1734859453572,0.0001,96629.0,96622.0,1.02536727]
[1734859453779,0.0001,96629.0,96622.0,1.02936727]
[1734859455404,0.01937295,96637.0,96622.0,1.02936727]
[1734859455405,0.01937295,96637.0,96636.0,0.379962]
[1734859455722,0.00016304,96637.0,96636.0,0.5620704]
[1734859455919,0.00016304,96637.0,96636.0,0.57019199]
[1734859456323,4e-08,96637.0,96636.0,1.21319624]
[1734859456710,4e-08,96637.0,96636.0,1.24537064]
[1734859457115,4e-08,96637.0,96636.0,1.25337064]
[1734859457291,4e-08,96637.0,96636.0,1.73860624]
[1734859457491,4e-08,96637.0,96636.0,1.73060624]
[1734859457755,4e-08,96637.0,96636.0,1.74976779]
[1734859457929,4e-08,96637.0,96636.0,1.77098667]
[1734859458706,4e-08,96637.0,96636.0,1.77598667]
[1734859459224,4e-08,96637.0,96636.0,1.76698667]
[1734859459617,4e-08,96637.0,96636.0,1.69418667]
[1734859459999,4e-08,96637.0,96636.0,1.68618667]
[1734859460171,4e-08,96637.0,96636.0,1.68918667]
[1734859460938,4e-08,96637.0,96636.0,1.68118667]
[1734859461165,4e-08,96637.0,96636.0,1.68518667]
[1734859461361,4e-08,96637.0,96636.0,1.69318667]
[1734859461566,4e-08,96637.0,96636.0,1.68918667]
[1734859461876,4e-08,96637.0,96636.0,1.69318667]
[1734859462541,4e-08,96637.0,96636.0,1.68518667]
[1734859462685,6.4e-07,96637.0,96636.0,1.68518667]
[1734859462895,6.4e-07,96637.0,96636.0,1.69318667]
[1734859463331,6.4e-07,96637.0,96636.0,1.68918667]
[1734859463534,6.4e-07,96637.0,96636.0,1.68118667]
[1734859463743,6.4e-07,96637.0,96636.0,1.68518667]
[1734859464079,6.4e-07,96637.0,96636.0,1.69318667]
[1734859464290,6.4e-07,96637.0,96636.0,1.68918667]
[1734859464656,6.4e-07,96637.0,96636.0,1.69318667]
[1734859466287,6.4e-07,96637.0,96636.0,1.59318667]
[1734859466489,6.4e-07,96637.0,96636.0,1.69318667]
[1734859470608,6.4e-07,96637.0,96636.0,1.59318667]
[1734859470809,6.4e-07,96637.0,96636.0,1.58118667]
[1734859471158,6.4e-07,96637.0,96636.0,1.58918667]
[1734859471506,6.4e-07,96637.0,96636.0,1.59318667]
[1734859472110,6.4e-07,96637.0,96636.0,1.58918667]
[1734859472337,6.4e-07,96637.0,96636.0,1.04618242]
[1734859472537,6.4e-07,96637.0,96636.0,1.03818242]
[1734859472948,6.4e-07,96637.0,96636.0,1.04318242]
[1734859474190,6.4e-07,96637.0,96636.0,1.03818242]
[1734859474387,6.4e-07,96637.0,96636.0,1.04018242]
[1734859474617,6.4e-07,96637.0,96636.0,1.04418242]
[1734859474797,6.4e-07,96637.0,96636.0,1.04218242]
[1734859475306,6.4e-07,96637.0,96636.0,1.58718667]
[1734859476775,6.4e-07,96637.0,96636.0,1.58318667]
[1734859477200,6.4e-07,96637.0,96636.0,1.58618667]
[1734859477496,6.4e-07,96637.0,96636.0,1.58118667]
[1734859477700,6.4e-07,96637.0,96636.0,1.58718667]
[1734859478100,6.4e-07,96637.0,96636.0,1.58418667]
[1734859478320,6.4e-07,96637.0,96636.0,1.58918667]
[1734859478521,6.4e-07,96637.0,96636.0,1.58618667]
[1734859478926,6.4e-07,96637.0,96636.0,1.58918667]
[1734859479859,6.4e-07,96637.0,96636.0,1.58418667]
[1734859480112,6.4e-07,96637.0,96636.0,1.58918667]
[1734859480318,6.4e-07,96637.0,96636.0,1.58118667]
[1734859480706,6.4e-07,96637.0,96636.0,1.58718667]
[1734859480905,6.4e-07,96637.0,96636.0,1.58318667]
[1734859481101,6.4e-07,96637.0,96636.0,1.58118667]
[1734859481335,6.4e-07,96637.0,96636.0,1.59018667]
[1734859481538,6.4e-07,96637.0,96636.0,1.58618667]
[1734859481758,6.4e-07,96637.0,96636.0,1.6183761]
[1734859481955,6.4e-07,96637.0,96636.0,1.6133761]
[1734859482268,6.4e-07,96637.0,96636.0,1.6193761]
[1734859482957,6.4e-07,96637.0,96636.0,1.6343761]
[1734859483427,6.4e-07,96637.0,96636.0,1.6383761]
[1734859483754,6.4e-07,96637.0,96636.0,1.6343761]
[1734859483957,6.4e-07,96637.0,96636.0,1.6433761]
[1734859484257,6.4e-07,96637.0,96636.0,1.6283761]
[1734859484457,6.4e-07,96637.0,96636.0,1.6333761]
[1734859484659,6.4e-07,96637.0,96636.0,1.6423761]
[1734859484854,6.4e-07,96637.0,96636.0,1.6333761]
[1734859485091,6.4e-07,96637.0,96636.0,1.6283761]
[1734859485255,6.4e-07,96637.0,96636.0,1.6423761]
[1734859487599,6.4e-07,96637.0,96636.0,1.7423761]
[1734859487905,6.4e-07,96637.0,96636.0,1.7425473]
[1734859490800,6.4e-07,96637.0,96636.0,1.8189473]
[1734859492257,6.4e-07,96637.0,96636.0,2.00485041]
[1734859493255,6.4e-07,96637.0,96636.0,1.8189473]
[1734859494637,0.015,96643.0,96642.0,0.379949]
[1734859494638,6.4e-07,96643.0,96642.0,0.379949]
[1734859494847,6.4e-07,96643.0,96642.0,1.03743606]
[1734859495424,6.4e-07,96643.0,96642.0,1.58044031]
[1734859496973,6.4e-07,96643.0,96642.0,1.58944031]
[1734859497309,6.4e-07,96643.0,96642.0,1.59444031]
[1734859497610,6.4e-07,96643.0,96642.0,1.69444031]
[1734859497844,2.4e-07,96646.0,96643.0,0.15]
[1734859497996,2.4e-07,96646.0,96645.0,0.173]
[1734859498202,2.4e-07,96649.0,96648.0,0.123]
[1734859498408,5.456e-05,96649.0,96648.0,0.92487232]
[1734859498584,5.456e-05,96649.0,96648.0,0.93044954]
[1734859498786,5.6e-07,96649.0,96648.0,0.93044954]
[1734859499434,5.6e-07,96649.0,96648.0,1.47345379]
[1734859499619,5.6e-07,96649.0,96648.0,1.61258773]
[1734859500373,5.6e-07,96649.0,96648.0,1.62158773]
[1734859500576,5.6e-07,96649.0,96648.0,1.61258773]
[1734859500839,5.6e-07,96649.0,96648.0,1.47845379]
[1734859500971,5.6e-07,96649.0,96648.0,1.48745379]
[1734859501173,5.6e-07,96649.0,96648.0,1.48245379]
[1734859502126,5.6e-07,96649.0,96648.0,1.48445379]
[1734859502411,5.6e-07,96649.0,96648.0,1.49481751]
[1734859502772,5.6e-07,96649.0,96648.0,1.48581751]
[1734859502977,5.6e-07,96649.0,96648.0,1.49481751]
[1734859503197,5.6e-07,96649.0,96648.0,1.48581751]
[1734859503584,5.6e-07,96649.0,96648.0,1.49281751]
[1734859503791,5.6e-07,96649.0,96648.0,1.49881751]
[1734859504269,5.6e-07,96649.0,96648.0,1.49281751]
[1734859504642,5.6e-07,96649.0,96648.0,1.48381751]
[1734859504842,5.6e-07,96649.0,96648.0,1.49481751]
[1734859505221,5.6e-07,96649.0,96648.0,1.49281751]
[1734859506361,5.6e-07,96649.0,96648.0,1.39281751]
[1734859506576,5.6e-07,96649.0,96648.0,1.57061751]
[1734859506905,5.6e-07,96649.0,96648.0,1.49281751]
[1734859507113,5.6e-07,96649.0,96648.0,1.56161751]
[1734859508211,6e-07,96666.0,96665.0,0.1]
[1734859508449,6e-07,96669.0,96668.0,0.379893]
[1734859508743,6e-07,96669.0,96668.0,0.48776537]
[1734859509293,0.09310365,96689.0,96672.0,0.273]
[1734859509294,2e-07,96673.0,96672.0,0.273]
[1734859509516,2e-07,96673.0,96672.0,0.4521084]
[1734859509719,0.01936395,96688.0,96687.0,0.356853]
[1734859510066,0.01990759,96688.0,96687.0,0.4811614]
[1734859510273,0.00054364,96688.0,96687.0,0.5811614]
[1734859510446,0.00054364,96688.0,96687.0,0.587716]
[1734859511005,0.00054364,96688.0,96687.0,0.589716]
[1734859511593,0.00054364,96688.0,96687.0,1.112846]
[1734859511991,0.00054364,96688.0,96687.0,1.116846]
[1734859512610,0.00054364,96688.0,96687.0,1.1380326]
[1734859513285,0.00054364,96688.0,96687.0,1.1260326]
[1734859513483,0.00054364,96688.0,96687.0,1.13660246]
[1734859513688,0.00054364,96688.0,96687.0,1.14560246]
[1734859513859,0.00054364,96688.0,96687.0,1.13960246]
[1734859514265,0.00054364,96688.0,96687.0,1.14860246]
[1734859514465,0.00054364,96688.0,96687.0,1.69160671]
[1734859514675,0.00054364,96688.0,96687.0,1.68860671]
[1734859515031,0.00054364,96688.0,96687.0,1.69360671]
[1734859515439,6.4e-07,96689.0,96688.0,0.1]
[1734859515643,5.7e-07,96689.0,96688.0,0.97027244]
[1734859515848,5.7e-07,96689.0,96688.0,0.97564052]
[1734859516330,8.57e-05,96702.0,96701.0,0.1]
[1734859516331,9.7e-07,96702.0,96701.0,0.1]
[1734859516502,9.7e-07,96702.0,96701.0,1.44074737]
[1734859517129,5.7e-07,96706.0,96705.0,0.123]
[1734859517329,5.7e-07,96706.0,96705.0,0.45941588]
[1734859517588,5.7e-07,96709.0,96708.0,0.273]
[1734859517928,5.7e-07,96709.0,96708.0,0.89768506]
[1734859518327,5.7e-07,96709.0,96708.0,1.44068931]
[1734859518652,5.7e-07,96709.0,96708.0,1.46911301]
[1734859518890,5.7e-07,96709.0,96708.0,1.44068931]
[1734859519490,5.7e-07,96709.0,96708.0,1.61588825]
[1734859520067,5.7e-07,96709.0,96708.0,1.61888825]
[1734859520567,5.7e-07,96709.0,96708.0,1.61588825]
[1734859520893,5.7e-07,96709.0,96708.0,1.62388825]
[1734859521233,5.7e-07,96709.0,96708.0,1.65022183]
[1734859521848,0.0145956,96717.0,96716.0,0.84979525]
[1734859522091,0.0145956,96717.0,96716.0,1.6758169]
[1734859522482,0.0145956,96717.0,96716.0,1.70215048]
[1734859523310,0.01932075,96764.0,96738.0,0.71600425]
[1734859523561,0.0002485,96740.0,96739.0,0.28164226]
[1734859523854,0.0002485,96740.0,96739.0,0.48734973]
[1734859524380,5e-07,96740.0,96739.0,1.15877768]
[1734859524663,7.6e-06,96749.0,96748.0,0.479722]
[1734859524833,7.6e-06,96749.0,96748.0,0.5810304]
[1734859525036,7.6e-06,96749.0,96748.0,0.48715541]
[1734859525815,7.6e-06,96749.0,96748.0,0.49727879]
[1734859526420,7.6e-06,96749.0,96748.0,0.50627879]
[1734859526618,7.6e-06,96749.0,96748.0,0.49727879]
[1734859526821,7.6e-06,96749.0,96748.0,0.50127879]
[1734859527026,7.6e-06,96749.0,96748.0,0.51027879]
[1734859527257,7.6e-06,96749.0,96748.0,0.61027879]
[1734859527459,7.6e-06,96749.0,96748.0,1.28740698]
[1734859527821,7.6e-06,96749.0,96748.0,1.28340698]
[1734859528846,7.6e-06,96749.0,96748.0,1.27440698]
[1734859529049,7.6e-06,96749.0,96748.0,1.24598328]
[1734859529262,7.6e-06,96749.0,96748.0,1.24898328]
[1734859529626,7.6e-06,96749.0,96748.0,1.21898304]
[1734859529909,7.6e-06,96749.0,96748.0,1.73979304]
[1734859530203,7.6e-06,96749.0,96748.0,1.74279304]
[1734859530579,7.6e-06,96749.0,96748.0,1.54209304]
[1734859531692,7.6e-06,96749.0,96748.0,1.56509304]
[1734859531892,7.6e-06,96749.0,96748.0,1.66509304]
[1734859532248,7.6e-06,96749.0,96748.0,1.66209304]
[1734859532471,7.6e-06,96749.0,96748.0,1.65709304]
[1734859533481,7.6e-06,96749.0,96748.0,1.65809304]
[1734859533755,7.6e-06,96749.0,96748.0,1.73679304]
[1734859534283,7.6e-06,96749.0,96748.0,1.73979304]